bitfinex/quotes_ETHUSD_20250428
["timestamp","ask_amount","ask_price","bid_price","bid_amount"]
[1745839874539,0.7555,1822.6,1822.1,0.769]
[1745839874743,0.7555,1822.6,1822.3,5.48728586]
[1745839874951,0.7555,1822.6,1822.4,0.54872859]
[1745839875326,6.8155,1822.7,1822.4,6.03580686]
[1745839875736,6.8155,1822.7,1822.5,5.4868305]
[1745839875959,0.7555,1822.7,1822.5,5.4868305]
[1745839876259,1.1806237,1822.9,1822.5,5.4868305]
[1745839876465,1.1806237,1822.9,1822.4,6.0358229]
[1745839876828,1.1806237,1822.9,1822.4,6.8242108]
[1745839877032,1.1806237,1822.9,1822.5,5.48683084]
[1745839877437,1.1806237,1822.9,1822.4,6.03579773]
[1745839877637,0.8183,1822.8,1822.4,0.54872859]
[1745839878044,0.8183,1822.8,1822.4,6.0359815]
[1745839878367,0.8183,1822.8,1822.5,0.60359815]
[1745839878937,0.8183,1822.8,1822.4,5.48714124]
[1745839879139,1.16141208,1822.7,1822.0,0.8021]
[1745839879348,0.7761,1822.5,1822.1,5.48809638]
[1745839879673,0.7761,1822.5,1822.1,5.48796504]
[1745839879853,0.7761,1822.5,1822.2,0.5487965]
[1745839880368,0.7761,1822.5,1822.0,5.4882847]
[1745839880571,6.06,1822.6,1822.1,6.30930062]
[1745839880774,6.06,1822.6,1822.2,5.48776171]
[1745839881147,0.8146,1822.5,1822.1,6.30930062]
[1745839882275,0.8146,1822.5,1822.0,5.48833734]
[1745839882446,0.8146,1822.5,1821.8,5.48892589]
[1745839882447,6.06,1822.4,1821.8,5.48892589]
[1745839882772,6.06,1822.4,1821.6,1.16141208]
[1745839882773,0.8289,1822.3,1821.6,1.16141208]
[1745839882976,6.8889,1822.3,1821.8,5.4890729]
[1745839883475,6.8889,1822.3,1821.8,10.97793541]
[1745839883772,6.8889,1822.3,1821.8,5.48884672]
[1745839884071,6.8889,1822.3,1821.9,0.54888467]
[1745839884520,0.7902,1822.2,1821.6,5.48951749]
[1745839887231,0.7902,1822.2,1821.5,5.48978491]
[1745839887529,0.7771,1822.0,1821.5,5.48978491]
[1745839888046,0.7771,1822.0,1821.6,5.48962785]
[1745839888221,0.7771,1822.0,1821.5,5.48980098]
[1745839888422,0.7771,1822.0,1821.6,0.5489801]
[1745839888623,0.7771,1822.0,1821.4,12.14178724]
[1745839889258,1.16141208,1821.8,1821.2,0.28654445]
[1745839889437,0.7853,1821.6,1821.0,5.49147429]
[1745839889634,0.7853,1821.4,1820.9,6.34974798]
[1745839889816,0.7853,1821.4,1821.0,0.6349748]
[1745839890148,0.7853,1821.4,1821.0,6.12634302]
[1745839890441,1.18970752,1821.4,1821.0,6.12634302]
[1745839891142,1.18970752,1821.4,1821.0,0.6349748]
[1745839891343,0.7549,1821.3,1821.0,0.6349748]
[1745839891544,0.7549,1821.3,1820.6,6.30245706]
[1745839891545,6.8149,1821.3,1820.8,5.49185724]
[1745839891745,6.8149,1821.3,1820.9,5.49177535]
[1745839892045,6.8149,1821.3,1821.0,5.49139702]
[1745839892346,6.8149,1821.3,1821.1,0.5491397]
[1745839893150,6.8149,1821.3,1820.8,5.49183601]
[1745839893445,0.7942,1821.2,1820.7,0.85892211]
[1745839893645,0.7942,1821.2,1820.5,5.49298201]
[1745839893858,0.7942,1821.0,1820.4,6.35210507]
[1745839894024,0.7942,1821.0,1820.5,0.63521051]
[1745839894224,0.7942,1821.0,1820.4,0.85901644]
[1745839895037,0.7942,1821.0,1820.4,5.49326281]
[1745839895245,0.7942,1821.0,1820.3,5.49340033]
[1745839896351,0.7942,1821.0,1820.2,7.14574696]
[1745839896651,7.64071392,1821.2,1820.3,5.49349025]
[1745839896652,0.8178,1820.8,1820.3,5.49349025]
[1745839896823,6.8778,1820.8,1820.4,0.54934902]
[1745839899306,7.28847955,1820.8,1820.4,0.54934902]
[1745839900153,7.28847955,1820.8,1820.4,6.04251049]
[1745839900452,0.8178,1820.8,1820.5,5.49280477]
[1745839900618,0.8178,1820.8,1820.6,5.4926396]
[1745839900823,0.8032,1821.0,1820.7,0.54926396]
[1745839901362,0.8032,1821.0,1820.8,5.49194288]
[1745839901755,0.8032,1821.0,1820.7,6.04153889]
[1745839902142,0.8032,1821.0,1820.7,0.54926396]
[1745839902357,0.8032,1821.0,1820.8,5.49200264]
[1745839902528,0.8032,1821.0,1820.9,0.54920026]
[1745839903560,0.7591,1821.2,1820.9,6.04099003]
[1745839903739,0.7591,1821.2,1820.9,0.54920026]
[1745839905271,0.7591,1821.2,1820.6,5.49250639]
[1745839905477,0.7591,1821.2,1820.6,5.49246901]
[1745839905681,0.7591,1821.2,1820.5,5.49284817]
[1745839905884,0.7591,1821.2,1820.6,5.49265728]
[1745839906476,0.8131,1821.0,1820.7,5.49238821]
[1745839906852,0.8131,1821.0,1820.4,0.54934902]
[1745839906853,0.8131,1821.0,1820.5,5.49281006]
[1745839907055,0.8131,1821.0,1820.5,0.60421591]
[1745839907543,0.8131,1821.0,1820.8,5.4918569]
[1745839908569,0.8131,1821.0,1820.8,10.98373523]
[1745839908743,6.06,1821.1,1820.9,5.49178977]
[1745839908941,0.819,1821.2,1820.9,10.9831588]
[1745839909170,0.819,1821.2,1821.0,5.49146093]
[1745839909472,0.819,1821.2,1820.9,5.4915743]
[1745839909767,0.819,1821.2,1821.0,6.04043876]
[1745839911391,0.819,1821.2,1821.0,0.54915743]
[1745839911599,0.819,1821.2,1820.8,5.49188255]
[1745839912151,0.819,1821.2,1820.7,5.49222516]
[1745839912469,0.819,1821.2,1820.5,5.4928334]
[1745839912670,0.819,1821.2,1820.4,5.49312352]
[1745839912891,0.819,1821.2,1820.5,5.4929027]
[1745839913274,0.819,1821.2,1820.5,6.59150532]
[1745839913789,0.819,1821.2,1820.5,6.59141315]
[1745839913991,0.819,1821.2,1820.6,5.49251493]
[1745839914190,0.819,1821.2,1820.7,5.49235239]
[1745839914880,0.819,1821.2,1820.6,5.49251493]
[1745839915254,0.819,1821.2,1820.4,10.98631282]
[1745839915459,0.819,1821.2,1820.5,5.49298112]
[1745839915654,0.819,1821.2,1820.4,10.98624112]
[1745839915875,0.819,1821.2,1820.5,1.09862411]
[1745839916075,0.819,1821.2,1820.3,5.49346701]
[1745839916277,0.7547,1821.0,1820.4,5.49324275]
[1745839916717,0.7547,1821.0,1820.5,5.49299508]
[1745839917051,0.7547,1821.0,1820.5,5.49285348]
[1745839917258,0.7547,1821.0,1820.7,5.49234644]
[1745839917458,6.06,1821.1,1820.9,5.49178977]
[1745839917675,6.06,1821.1,1820.9,5.4915735]
[1745839917987,6.06,1821.1,1820.9,10.9831419]
[1745839918193,6.06,1821.1,1820.9,5.4915684]
[1745839918573,6.06,1821.1,1821.0,5.49148819]
[1745839918761,6.06,1821.1,1821.0,6.58979385]
[1745839919495,0.7966,1821.5,1821.1,5.49118664]
[1745839919680,6.8566,1821.5,1821.0,6.58963348]
[1745839919993,0.7966,1821.4,1821.1,5.4910751]
[1745839920229,0.7966,1821.4,1821.2,5.49068948]
[1745839920497,0.7966,1821.4,1821.3,0.54906895]
[1745839920709,0.8011,1821.6,1821.3,0.54906895]
[1745839920861,6.8611,1821.8,1821.6,5.48945583]
[1745839921064,0.8011,1822.0,1821.7,5.48937805]
[1745839921500,0.8011,1822.0,1821.6,5.48945583]
[1745839921999,0.8011,1822.0,1821.6,2.94583042]
[1745839922167,6.06,1822.1,1822.0,5.4884742]
[1745839922367,0.7776,1822.2,1821.9,5.48856346]
[1745839922803,0.7776,1822.2,1821.8,5.48895607]
[1745839923184,0.7776,1822.2,1821.8,6.03907673]
[1745839923380,0.7776,1822.5,1822.2,5.48769874]
[1745839923725,0.7776,1822.5,1822.2,6.03646861]
[1745839923872,0.7776,1822.7,1822.4,5.48726953]
[1745839924074,0.7776,1822.7,1822.5,5.48690558]
[1745839924910,0.3661237,1822.9,1822.7,5.4862942]
[1745839925424,6.8543,1822.8,1822.2,0.54876987]
[1745839925574,6.8543,1822.8,1821.8,0.7501]
[1745839925575,7.53973,1822.7,1822.0,5.48829848]
[1745839925780,7.53973,1822.7,1822.1,5.48802048]
[1745839926015,7.53973,1822.7,1822.2,5.48771736]
[1745839926324,6.8543,1822.7,1822.2,5.487703]
[1745839926487,6.8543,1822.7,1822.4,5.48726869]
[1745839926692,6.8543,1822.7,1822.0,0.55]
[1745839926886,0.7943,1822.7,1822.2,0.7543]
[1745839927097,0.7943,1822.7,1822.4,5.48725051]
[1745839927300,0.7943,1822.7,1822.4,6.03597556]
[1745839929018,0.7943,1822.7,1822.4,0.54872505]
[1745839929388,0.7943,1822.7,1822.4,6.03598852]
[1745839930722,0.7943,1822.7,1822.2,5.48767249]
[1745839931017,6.06,1822.7,1821.9,8.48851045]
[1745839931215,0.818,1822.6,1822.0,10.97662882]
[1745839931380,0.818,1822.6,1821.8,8.48887695]
[1745839931718,0.818,1822.4,1821.9,5.48861238]
[1745839931876,0.818,1822.4,1822.0,0.54886124]
[1745839932080,0.818,1822.4,1821.7,5.78381113]
[1745839932277,0.758,1822.2,1821.7,0.29458304]
[1745839932527,6.818,1822.2,1821.7,5.48937575]
[1745839933410,6.818,1822.2,1821.4,0.7806]
[1745839933612,0.8307,1822.1,1821.5,5.48987469]
[1745839933810,0.8307,1822.1,1821.4,6.27070702]
[1745839933811,0.8307,1822.1,1821.4,5.49005056]
[1745839934120,0.8307,1822.1,1821.5,5.48997718]
[1745839934314,0.8307,1822.1,1821.6,0.54899772]
[1745839934907,0.8307,1822.1,1821.4,5.49012008]
[1745839935108,6.8103,1822.0,1821.4,5.49012008]
[1745839935733,0.7503,1821.9,1821.3,5.49044566]
[1745839936019,6.06,1821.8,1821.3,5.49036306]
[1745839936733,6.06,1821.8,1821.5,5.48987093]
[1745839936896,6.06,1821.8,1821.5,6.58786903]
[1745839937295,6.06,1821.8,1821.4,5.49013288]
[1745839938322,6.06,1821.8,1821.4,10.98024467]
[1745839938624,6.06,1821.8,1821.7,5.48937805]
[1745839938815,0.7879,1822.1,1821.7,5.48937805]
[1745839939003,0.7879,1822.1,1821.8,5.48901262]
[1745839939204,0.7879,1822.1,1821.8,6.58685169]
[1745839939732,0.7879,1822.1,1821.8,5.48907401]
[1745839940100,0.7879,1822.1,1821.8,5.48887017]
[1745839940305,6.06,1822.2,1821.8,0.7937]
[1745839940504,6.8791,1822.4,1822.0,5.48822526]
[1745839940917,6.8791,1822.4,1821.9,5.48856311]
[1745839941120,6.8791,1822.4,1821.9,6.66567999]
[1745839941317,6.8791,1822.4,1821.9,1.17711688]
[1745839941532,6.8791,1822.4,1821.9,5.48875502]
[1745839941699,6.8791,1822.4,1821.9,5.48856101]
[1745839942629,6.8791,1822.4,1821.9,10.97711136]
[1745839942834,6.8791,1822.4,1822.0,5.48846302]
[1745839943929,6.8791,1822.4,1821.9,5.4885774]
[1745839944134,6.8791,1822.4,1822.0,0.54885774]
[1745839944361,6.8791,1822.4,1822.0,6.03724049]
[1745839944696,6.8791,1822.4,1822.0,0.54885774]
[1745839945046,6.8791,1822.4,1821.9,5.48873722]
[1745839945845,6.8791,1822.4,1821.8,5.48898083]
[1745839946015,0.7697,1822.3,1821.8,5.48898083]
[1745839946332,0.7697,1822.3,1821.7,5.48915765]
[1745839946533,0.7697,1822.3,1821.7,10.9783153]
[1745839946735,0.7697,1822.3,1821.8,1.09783153]
[1745839947737,0.7697,1822.3,1821.9,5.48856172]
[1745839947937,0.7697,1822.3,1821.8,5.48888863]
[1745839948163,0.7697,1822.3,1821.4,0.55]
[1745839948352,0.8122,1822.1,1821.5,5.4898686]
[1745839948557,0.8122,1822.1,1821.3,5.49040396]
[1745839948558,3.0,1822.0,1821.3,5.49040396]
[1745839948726,0.8122,1821.7,1821.2,5.49084739]
[1745839949068,6.8722,1821.7,1821.2,5.49079343]
[1745839949236,6.8722,1821.7,1821.5,5.48983903]
[1745839949427,6.06,1821.7,1821.5,5.48983903]
[1745839950050,6.06,1821.7,1821.3,5.4904411]
[1745839950257,0.7954,1821.6,1821.0,5.49135527]
[1745839950564,0.7954,1821.6,1820.8,9.31938907]
[1745839950772,6.06,1821.5,1821.2,5.49086007]
[1745839950927,6.8554,1821.6,1821.2,5.49086007]
[1745839951122,6.8554,1821.6,1821.3,0.54908601]
[1745839951323,6.8554,1821.6,1821.3,6.03965544]
[1745839953067,6.8554,1821.6,1821.3,6.03958463]
[1745839953978,6.8554,1821.6,1821.3,0.54908601]
[1745839954849,6.8554,1821.6,1821.3,6.03963677]
[1745839955260,6.8554,1821.6,1821.4,6.09419199]
[1745839955569,6.06,1821.6,1821.5,5.48998078]
[1745839955766,0.801,1821.8,1821.6,5.4895043]
[1745839955931,0.801,1821.8,1821.5,5.48979744]
[1745839956271,0.801,1821.8,1821.6,0.54897974]
[1745839957348,0.801,1821.8,1821.6,6.03854878]
[1745839958341,0.801,1821.8,1821.6,0.54897974]
[1745839958562,0.801,1821.8,1821.5,5.48981229]
[1745839959574,0.801,1821.8,1821.4,6.09421968]
[1745839960972,0.801,1821.8,1821.4,11.58432321]
[1745839961132,0.801,1821.8,1821.4,6.09406721]
[1745839962571,0.801,1821.8,1821.4,0.60396368]
[1745839962869,0.7646,1821.6,1821.2,5.49077135]
[1745839963064,0.7646,1821.6,1821.3,5.4905152]
[1745839963458,0.7646,1821.6,1821.2,5.49072137]
[1745839963766,0.7646,1821.6,1821.3,5.49050497]
[1745839963954,6.06,1821.7,1821.5,5.48998078]
[1745839964154,6.06,1821.7,1821.6,5.4896794]
[1745839964471,0.8079,1821.8,1821.6,5.48950814]
[1745839965170,0.8079,1821.8,1821.6,10.97900654]
[1745839965469,0.7774,1822.0,1821.8,5.4889407]
[1745839966556,0.7774,1822.0,1821.7,10.1621809]
[1745839966917,0.7774,1822.0,1821.8,10.16205581]
[1745839967378,6.8823,1822.2,1821.8,10.16193364]
[1745839967685,6.8823,1822.2,1821.8,10.16187681]
[1745839967839,6.8823,1822.2,1821.8,15.65075012]
[1745839968039,6.8823,1822.2,1821.9,5.48873274]
[1745839968378,6.8823,1822.2,1821.9,7.05368897]
[1745839968568,0.8223,1822.2,1822.1,5.48817298]
[1745839969174,0.8081,1822.4,1822.3,5.48757065]
[1745839969371,0.8081,1822.4,1822.3,4.673]
[1745839971087,0.8081,1822.4,1821.9,1.56506061]
[1745839971262,0.8081,1822.4,1821.8,10.97780966]
[1745839971263,0.8081,1822.4,1821.8,5.48890017]
[1745839971463,0.8081,1822.4,1821.9,4.673]
[1745839972080,0.8081,1822.4,1821.7,8.70123662]
[1745839972285,0.8081,1822.4,1822.0,4.673]
[1745839972486,0.8081,1822.4,1821.7,8.70123662]
[1745839972688,0.8081,1822.4,1821.8,4.673]
[1745839973157,0.8081,1822.4,1821.9,4.673]
[1745839974486,0.8081,1822.4,1822.0,4.673]
[1745839974883,0.8035,1822.3,1822.1,4.673]
[1745839975871,0.8035,1822.3,1822.2,4.673]
[1745839976995,6.8635,1822.3,1822.2,4.673]
[1745839979883,6.06,1822.3,1822.2,4.673]
[1745839980074,6.06,1822.3,1821.6,16.469]
[1745839980075,0.8248,1822.2,1821.6,16.469]
[1745839980269,0.8248,1822.2,1821.7,4.673]
[1745839981895,8.20973042,1822.3,1821.8,4.673]
[1745839982116,0.7777,1822.2,1821.8,4.673]
[1745839985623,0.766,1822.0,1821.8,4.673]
[1745839985924,6.06,1821.9,1821.8,4.673]
[1745839986091,6.06,1821.9,1821.8,10.62937673]
[1745839987138,6.06,1821.9,1821.8,5.1403]
[1745839987808,6.06,1821.9,1821.8,10.62937673]
[1745839988123,6.06,1821.9,1821.8,5.1403]
[1745839989736,6.06,1821.9,1821.8,10.62937673]
[1745839990838,6.06,1821.9,1821.8,11.38147673]
[1745839991415,6.8557,1822.4,1822.0,5.4883832]
[1745839991729,6.8557,1822.4,1822.0,6.58609398]
[1745839992426,6.8557,1822.4,1822.0,1.09771078]
[1745839994909,6.8557,1822.4,1821.9,5.48857391]
[1745839995910,6.8557,1822.4,1822.0,5.48841266]
[1745839996110,6.8557,1822.4,1822.1,5.48815415]
[1745839996438,6.8799,1822.6,1822.2,10.15167753]
[1745839996642,6.8799,1822.6,1822.2,4.664]
[1745839996840,6.8799,1822.6,1822.3,0.4664]
[1745839998455,6.8799,1822.6,1822.2,4.664]
[1745840000665,6.06,1822.6,1822.2,4.664]
[1745840000866,0.8276,1822.5,1822.2,4.664]
[1745840001365,5.97733042,1822.5,1822.3,4.664]
[1745840001560,0.7706,1822.3,1821.7,22.77518135]
[1745840001862,0.7706,1822.3,1821.8,10.15292401]
[1745840002430,0.7706,1822.3,1821.7,16.467]
[1745840002431,6.06,1822.2,1821.7,16.467]
[1745840002630,0.7592,1822.1,1821.9,4.664]
[1745840003966,0.7592,1822.1,1821.9,5.1304]
[1745840004275,6.06,1822.2,1821.9,5.1304]
[1745840004589,6.06,1822.2,1821.9,4.664]
[1745840004769,0.7797,1822.1,1821.9,4.664]
[1745840006068,6.8397,1822.1,1821.9,4.664]
[1745840013983,7.63799018,1822.1,1822.0,4.664]
[1745840014282,4.25972303,1822.1,1822.0,4.664]
[1745840014480,7.25972303,1822.1,1822.0,4.664]
[1745840014684,5.94713042,1822.1,1822.0,4.664]
[1745840015481,4.95766417,1822.1,1822.0,4.664]
[1745840017587,11.43422094,1822.1,1822.0,4.664]
[1745840017760,17.49422094,1822.1,1822.0,4.664]
[1745840017962,19.79243092,1822.1,1822.0,4.664]
[1745840019274,14.30425794,1822.1,1822.0,4.664]
[1745840019474,19.79243092,1822.1,1822.0,4.664]
[1745840022508,9.26838725,1822.0,1821.9,4.665]
[1745840022710,15.32838725,1822.0,1821.9,4.665]
[1745840022910,17.85472907,1822.0,1821.9,4.665]
[1745840023403,17.85472907,1822.0,1821.7,16.467]
[1745840023404,9.26897673,1821.8,1821.7,16.467]
[1745840023605,11.41762469,1821.8,1821.7,21.132]
[1745840024108,11.81992432,1821.8,1821.7,21.132]
[1745840024607,18.15651048,1821.8,1821.7,21.132]
[1745840024795,20.52105115,1821.8,1821.7,21.132]
[1745840025607,21.07105115,1821.8,1821.7,21.132]
[1745840028803,20.52105115,1821.8,1821.7,21.132]
[1745840029712,20.52105115,1821.8,1821.7,15.072]
[1745840030921,20.52105115,1821.8,1820.6,5.85897527]
[1745840030922,5.4902822,1821.4,1820.6,5.85897527]
[1745840031099,3.0,1821.0,1820.7,21.122]
[1745840031295,9.06,1821.0,1820.7,21.122]
[1745840032121,9.06,1821.0,1820.8,0.8215]
[1745840032292,9.06,1821.0,1820.8,3.01585]
[1745840032293,6.06,1821.0,1820.8,3.01585]
[1745840035515,4.18885387,1821.2,1820.8,3.01585]
[1745840037006,4.18885387,1821.2,1820.9,4.652]
[1745840039527,5.3503305,1821.2,1820.9,4.652]
[1745840040237,10.84136463,1821.2,1820.9,4.652]
[1745840040443,1.16147663,1821.0,1820.9,4.652]
[1745840041335,7.22147663,1821.0,1820.9,4.652]
[1745840042838,7.22147663,1821.0,1820.9,4.653]
[1745840043156,7.22147663,1821.0,1820.7,16.471]
[1745840043157,9.25280951,1820.9,1820.7,16.471]
[1745840043311,10.57884896,1820.8,1820.7,16.471]
[1745840043649,10.57884896,1820.8,1820.7,21.124]
[1745840045329,5.08675758,1820.8,1820.7,21.124]
[1745840045737,4.16147663,1820.8,1820.7,21.124]
[1745840046051,9.65356801,1820.8,1820.7,21.124]
[1745840047049,10.45536801,1820.8,1820.7,21.124]
[1745840047251,16.51536801,1820.8,1820.7,21.124]
[1745840047413,16.51536801,1820.8,1820.4,6.59]
[1745840047414,3.0,1820.7,1820.4,6.59]
[1745840047608,3.0,1820.7,1820.5,21.132]
[1745840048014,8.02327663,1820.8,1820.5,21.132]
[1745840048015,6.06,1820.8,1820.5,23.9042]
[1745840048544,6.06,1820.8,1820.6,0.7672]
[1745840049442,7.22147663,1821.2,1820.6,0.7672]
[1745840053854,7.22147663,1821.2,1820.7,0.8214]
[1745840054057,6.06,1821.2,1820.8,0.8214]
[1745840054282,6.06,1821.2,1821.0,0.8178]
[1745840054585,7.22147663,1821.4,1821.0,0.8178]
[1745840054749,7.22147663,1821.4,1821.0,1.36498]
[1745840055976,3.0,1821.4,1821.0,1.36498]
[1745840057357,4.16147663,1821.4,1821.0,1.36498]
[1745840057757,4.91327663,1821.4,1821.0,1.36498]
[1745840057994,10.80712057,1821.4,1821.0,1.36498]
[1745840058166,10.40366094,1821.4,1821.0,1.36498]
[1745840059996,4.91327663,1821.4,1821.0,1.36498]
[1745840060291,10.40368492,1821.4,1821.0,1.36498]
[1745840060696,4.91327663,1821.4,1821.0,1.36498]
[1745840060996,1.16147663,1821.2,1821.0,1.36498]
[1745840062766,4.16147663,1821.4,1821.0,1.36498]
[1745840063065,3.0,1821.4,1821.0,1.36498]
[1745840063266,6.06,1821.5,1821.1,0.8016]
[1745840063461,4.16147663,1821.6,1821.1,0.8016]
[1745840063462,10.22147663,1821.6,1821.1,0.8016]
[1745840063696,6.06,1821.6,1821.1,0.8016]
[1745840064197,7.22147663,1821.6,1821.1,0.8016]
[1745840067340,1.16147663,1821.6,1821.1,0.8016]
[1745840068197,6.47647446,1821.7,1821.1,0.8016]
[1745840068198,6.06,1821.7,1821.1,0.8016]
[1745840068831,6.06,1821.7,1821.2,17.2897]
[1745840069012,6.06,1821.7,1821.4,0.8137]
[1745840069219,7.22147663,1821.8,1821.4,0.8137]
[1745840069546,12.71062435,1821.8,1821.4,0.8137]
[1745840069907,1.16147663,1821.6,1821.4,0.8137]
[1745840070101,1.16147663,1821.6,1821.3,6.37897]
[1745840070301,1.16147663,1821.6,1821.3,4.65]
[1745840072260,7.63678204,1821.8,1821.4,0.8151]
[1745840074857,13.12586168,1821.8,1821.4,0.8151]
[1745840075069,7.63678204,1821.8,1821.4,0.8151]
[1745840075358,6.06,1821.8,1821.4,0.8151]
[1745840075523,7.22147663,1821.8,1821.4,1.36161]
[1745840076364,7.22147663,1821.8,1821.4,0.8151]
[1745840076563,12.71055699,1821.8,1821.4,0.8151]
[1745840077272,7.22147663,1821.8,1821.4,0.8151]
[1745840078574,12.71065434,1821.8,1821.4,0.8151]
[1745840079083,7.44500293,1821.6,1821.5,16.474]
[1745840079372,2.20597692,1821.6,1821.5,16.474]
[1745840079560,8.26597692,1821.6,1821.5,16.474]
[1745840080970,13.75565632,1821.6,1821.5,16.474]
[1745840081785,0.7547,1821.4,1820.3,0.8211]
[1745840082075,1.16147663,1821.0,1820.5,0.7553]
[1745840082974,1.16147663,1821.0,1820.6,4.649]
[1745840083756,7.0663184,1821.0,1820.6,4.649]
[1745840083955,12.55806262,1821.0,1820.6,4.649]
[1745840084150,7.0663184,1821.0,1820.6,4.649]
[1745840084651,7.0663184,1821.0,1820.7,4.649]
[1745840086682,12.55807963,1821.0,1820.7,4.649]
[1745840086860,7.0663184,1821.0,1820.7,4.649]
[1745840087059,5.49180041,1820.9,1820.7,4.649]
[1745840088199,11.55180041,1820.9,1820.7,4.649]
[1745840089407,5.49209138,1820.8,1820.7,4.649]
[1745840089706,17.04384572,1820.9,1820.7,4.649]
[1745840090004,11.55180041,1820.9,1820.7,4.649]
[1745840090702,12.35580041,1820.9,1820.7,4.649]
[1745840090911,1.16147663,1820.8,1820.7,4.649]
[1745840091207,6.65356801,1820.8,1820.7,4.649]
[1745840091569,8.55450485,1820.8,1820.7,4.649]
[1745840092702,6.65356801,1820.8,1820.7,4.649]
[1745840094108,7.22147663,1820.8,1820.7,4.649]
[1745840094311,6.06,1820.8,1820.7,4.649]
[1745840094676,12.71356801,1820.8,1820.7,4.649]
[1745840097829,16.50966801,1820.8,1820.7,4.649]
[1745840098009,18.70981485,1820.8,1820.7,4.649]
[1745840101326,12.71356801,1820.8,1820.7,4.649]
[1745840105359,7.22147663,1820.8,1820.7,4.649]
[1745840106025,12.71356801,1820.8,1820.7,4.649]
[1745840106446,12.71356801,1820.8,1820.7,21.13]
[1745840108465,13.52436801,1820.8,1820.7,21.13]
[1745840108634,15.42598485,1820.8,1820.7,21.13]
[1745840113245,14.61518485,1820.8,1820.7,21.13]
[1745840114346,6.06,1820.8,1820.7,21.13]
[1745840114748,9.06,1820.9,1820.8,0.7564]
[1745840114955,6.06,1820.9,1820.8,0.7564]
[1745840116062,7.22147663,1820.9,1820.7,21.13]
[1745840116436,12.7132973,1820.9,1820.7,21.13]
[1745840117267,18.20531706,1820.9,1820.7,21.13]
[1745840117493,5.49209138,1820.8,1820.7,21.13]
[1745840118988,8.49209138,1820.8,1820.7,21.13]
[1745840123675,3.0,1820.8,1820.7,21.13]
[1745840124206,7.22147663,1820.9,1820.7,21.13]
[1745840124383,6.06,1820.9,1820.8,0.7664]
[1745840124931,11.55072763,1821.3,1820.8,0.7664]
[1745840125135,12.71220426,1821.3,1820.8,0.7664]
[1745840125431,12.71207628,1821.3,1820.8,0.7664]
[1745840125627,3.0,1821.2,1820.8,0.7664]
[1745840126016,6.53426752,1821.6,1820.8,0.7664]
[1745840126017,0.7768,1821.7,1820.8,0.7664]
[1745840126218,6.65126228,1821.6,1820.8,0.7664]
[1745840126530,6.65126228,1821.6,1820.7,28.73539059]
[1745840126531,1.16147663,1821.5,1820.9,0.7664]
[1745840128120,1.16147663,1821.7,1821.0,0.8218]
[1745840128321,1.16147663,1821.7,1821.1,4.66]
[1745840128640,1.16147663,1821.7,1821.3,0.8218]
[1745840129436,1.16147663,1821.5,1821.3,0.8218]
[1745840131065,1.1535845,1821.5,1821.3,0.8218]
[1745840131775,1.1535845,1821.5,1821.4,0.31396664]
[1745840133076,1.16147663,1821.7,1821.4,0.31396664]
[1745840133246,1.16147663,1821.7,1821.5,4.659]
[1745840133443,1.16147663,1821.7,1821.6,0.31540632]
[1745840134265,6.65085468,1821.7,1821.6,0.31540632]
[1745840134447,8.20556917,1821.7,1821.5,4.659]
[1745840135056,2.71619112,1821.7,1821.5,4.659]
[1745840135224,5.4896794,1821.6,1821.5,4.659]
[1745840135644,6.65104415,1821.7,1821.5,4.659]
[1745840136025,6.64335915,1821.7,1821.5,4.659]
[1745840138160,0.7699,1821.3,1820.8,0.8106]
[1745840138451,5.49173096,1821.0,1820.9,4.92319054]
[1745840138751,5.49136962,1821.1,1820.9,4.92319054]
[1745840139556,6.65296482,1821.0,1820.9,4.92319054]
[1745840140124,1.16147663,1821.0,1820.9,4.92319054]
[1745840141531,3.0,1821.2,1821.0,0.8296]
[1745840141758,4.16147663,1821.2,1821.0,0.8296]
[1745840141961,4.16147663,1821.2,1821.1,0.26662384]
[1745840143657,4.15516152,1821.2,1821.1,0.26662384]
[1745840145871,9.64604665,1821.2,1821.1,0.26662384]
[1745840146862,4.15516152,1821.2,1821.1,0.26662384]
[1745840147063,9.64604665,1821.2,1821.1,0.26662384]
[1745840147366,9.64604665,1821.2,1820.9,4.658]
[1745840147565,9.64604665,1821.2,1821.1,0.26662384]
[1745840147768,9.64604665,1821.2,1820.9,5.20172]
[1745840147951,9.64604665,1821.2,1821.1,0.26662384]
[1745840148276,9.64604665,1821.2,1821.0,0.26697404]
[1745840148574,5.49118664,1821.1,1821.0,0.26697404]
[1745840149245,6.29028664,1821.1,1821.0,0.26697404]
[1745840151067,9.29028664,1821.1,1821.0,0.26697404]
[1745840151365,11.18391997,1821.1,1821.0,0.26697404]
[1745840151768,9.29028664,1821.1,1821.0,0.26697404]
[1745840152740,9.27798664,1821.1,1821.0,0.26697404]
[1745840153438,6.06,1821.8,1821.0,0.26697404]
[1745840153642,6.65086294,1821.7,1821.1,0.8105]
[1745840153837,1.16147663,1821.7,1821.2,0.26840739]
[1745840154038,1.16147663,1821.7,1821.4,0.8105]
[1745840154450,1.16147663,1821.7,1821.5,0.26702615]
[1745840157185,1.16147663,1821.7,1821.4,0.97874316]
[1745840157390,6.65088173,1821.7,1821.4,0.89043878]
[1745840157555,6.65088173,1821.7,1821.5,0.26702615]
[1745840157888,6.65088173,1821.7,1821.5,0.03346278]
[1745840158460,6.65088173,1821.7,1821.5,0.03346261]
[1745840158667,5.4896794,1821.6,1821.5,0.03346261]
[1745840160003,9.70373551,1821.6,1821.5,0.03346261]
[1745840160190,10.52033551,1821.6,1821.5,4.71446261]
[1745840160597,16.58033551,1821.6,1821.5,0.03346261]
[1745840160798,16.58033551,1821.6,1821.5,4.71446261]
[1745840161304,16.57150376,1821.6,1821.5,4.71446261]
[1745840163472,18.72148877,1821.6,1821.5,4.71446261]